lending/lending_fUSD_20250813
["ID","MTS","AMOUNT","RATE_DAILY","PERIOD"]
[378831157,1755043204329,300.0,0.00027651,120]
[378831168,1755043630131,-152.0,0.00021,2]
[378831169,1755043630153,-129.79427489,0.0002218,2]
[378831170,1755043642090,-169.20572511,0.0002218,2]
[378831171,1755043642111,-293.0,0.0002337,2]
[378831172,1755043642132,-287.0,0.0002455,2]
[378831173,1755043642155,-39.87849126,0.00025137,2]
[378831182,1755043747098,-482.12150874,0.00025137,2]
[378831183,1755043747121,-511.00003,0.00025137,2]
[378831184,1755043747142,-265.0,0.000255,2]
[378831185,1755043747164,-259.0,0.0002668,2]
[378831186,1755043747186,-254.0,0.0002787,2]
[378831187,1755043747208,-249.0,0.0002905,2]
[378831188,1755043747230,-244.0,0.0003023,2]
[378831189,1755043747251,-483.5843948,0.00031348,2]
[378831190,1755043747272,-330.57,0.00034098,7]
[378831191,1755043747293,-158.85,0.00034247,2]
[378831192,1755043747313,-171.25264387,0.00036917,2]
[378831193,1755043747335,-150.0,0.00039638,120]
[378831194,1755043747356,-150.0,0.00040635,120]
[378831195,1755043747531,43.86708973,0.0003142,2]
[378831196,1755043750118,-194.13291027,0.0003142,2]
[378831197,1755043750140,-233.0,0.000326,2]
[378831198,1755043750162,-228.0,0.0003379,2]
[378831199,1755043750189,-222.0,0.0003497,2]
[378831200,1755043750232,-217.0,0.0003615,2]
[378831201,1755043750277,-212.0,0.0003734,2]
[378831202,1755043750320,-206.0,0.0003852,2]
[378831203,1755043750352,48.12231217,0.000397,2]
[378831204,1755043751219,-1888.0,0.0003902,3]
[378831205,1755043751242,-148.44,0.000397,2]
[378831206,1755043753089,-4.43768783,0.000397,2]
[378831207,1755043753111,-196.0,0.0004089,2]
[378831208,1755043753133,-191.0,0.0004207,2]
[378831209,1755043753155,-150.0,0.000422,2]
[378831210,1755043753176,-108.77101506,0.00042568,64]
[378831211,1755043769094,-745.77298494,0.00042568,64]
[378831212,1755043769117,-522.0,0.00042568,31]
[378831213,1755043769138,-597.51,0.00042603,30]
[378831214,1755043769163,-598.61,0.00042603,30]
[378831215,1755043769186,-198.48,0.0004275,120]
[378831216,1755043769207,-230.79,0.00042843,2]
[378831217,1755043769228,-550.0,0.00043117,5]
[378831218,1755043769250,-200.0,0.00043117,60]
[378831219,1755043769273,-23900.0,0.00043118,2]
[378831220,1755043769294,-185.0,0.0004326,2]
[378831221,1755043769315,-562.17,0.00043386,120]
[378831222,1755043769335,-3329.76,0.00043431,2]
[378831223,1755043769356,-483.09,0.00043443,120]
[378831224,1755043769378,-166.79,0.00043563,2]
[378831225,1755043769400,-56.93252048,0.0004387,2]
[378831230,1755043831752,-150.0,0.00039718,120]
[378831231,1755043831762,-150.0,0.0004242,120]
[378831232,1755043831772,-588.46,0.00043264,30]
[378831233,1755043831781,-1340.02199562,0.00043343,3]
[378831234,1755043831790,-408.38,0.00043386,2]
[378831235,1755043831799,-457.93703655,0.00043869,2]
[378831236,1755043831810,-603.79,0.00043941,30]
[378831237,1755043831821,-152.0,0.00044192,3]
[378831238,1755043831830,-213.93,0.00044292,2]
[378831239,1755043831840,-213.93,0.00044315,2]
[378831240,1755043831849,-213.93,0.00044338,2]
[378831241,1755043831858,-213.93,0.00044361,2]
[378831242,1755043831868,-213.93,0.00044385,2]
[378831243,1755043831877,-213.93,0.00044408,2]
[378831244,1755043831887,-213.93,0.00044431,2]
[378831245,1755043831896,-180.0,0.0004444,2]
[378831246,1755043831905,-213.93,0.00044455,2]
[378831247,1755043831914,-213.93,0.00044478,2]
[378831248,1755043831930,-150.0,0.00044488,120]
[378831249,1755043831944,-213.93,0.00044501,2]
[378831250,1755043831954,-213.93,0.00044525,2]
[378831251,1755043831963,-213.93,0.00044548,2]
[378831252,1755043831973,-213.93,0.00044571,2]
[378831253,1755043831982,-213.93,0.00044595,2]
[378831254,1755043831991,-213.93,0.00044618,2]
[378831255,1755043832001,-213.93,0.00044641,2]
[378831256,1755043832010,-213.93,0.00044665,2]
[378831257,1755043832020,-213.93,0.00044688,2]
[378831258,1755043832029,-550.0,0.00044688,5]
[378831259,1755043832039,-213.93,0.00044711,2]
[378831260,1755043832048,-213.93,0.00044735,2]
[378831261,1755043832057,-552.0,0.00044883,30]
[378831262,1755043832066,-497.0,0.00044905,2]
[378831263,1755043832076,-230.79,0.00044986,2]
[378831264,1755043832085,-500.7811271,0.00045,2]
[378831265,1755043832094,-316.81704073,0.00045057,7]
[378831266,1755043832106,-180.18295927,0.00045057,7]
[378831267,1755043832115,-150.0,0.00045145,120]
[378831268,1755043832125,-339.32105743,0.00045208,2]
[378831269,1755043837519,-3629.62894257,0.00045208,2]
[378831270,1755043837529,-552.0,0.00045346,30]
[378831271,1755043837539,-497.0,0.00045395,2]
[378831272,1755043837549,-150.0,0.00045489,120]
[378831273,1755043837559,-1391.48,0.00045543,2]
[378831274,1755043837574,-250.0,0.00045563,120]
[378831275,1755043837584,-175.0,0.0004562,2]
[378831276,1755043837594,-552.0,0.00045808,30]
[378831277,1755043837605,-497.0,0.00045871,30]
[378831278,1755043837615,-499.0,0.00045932,2]
[378831280,1755043837626,-244.52,0.00045942,120]
[378831282,1755043837636,-498.0,0.00046068,120]
[378831283,1755043837646,-499.0,0.00046093,7]
[378831284,1755043837655,-150.0,0.00046193,60]
[378831285,1755043837665,-150.0,0.00046193,60]
[378831286,1755043837675,-498.0,0.00046251,2]
[378831287,1755043837685,-552.0,0.00046271,30]
[378831288,1755043837694,-498.0,0.00046442,2]
[378831289,1755043837703,-213.7586928,0.00046467,60]
[378831291,1755043837713,-1000.0,0.00046498,2]
[378831293,1755043837723,-165.85,0.00046512,2]
[378831295,1755043837733,-170.0,0.00046634,7]
[378831297,1755043837743,-552.0,0.00046734,30]
[378831299,1755043837753,-169.0,0.0004681,2]
[378831300,1755043837763,-500.0,0.00047122,60]
[378831302,1755043837774,-230.79,0.00047128,2]
[378831304,1755043837784,-552.0,0.00047196,30]
[378831307,1755043837794,-497.0,0.00047231,120]
[378831309,1755043837804,-497.0,0.00047243,2]
[378831311,1755043837813,-150.0,0.00047335,2]
[378831313,1755043837823,-426.75,0.00047335,2]
[378831315,1755043837832,-666.0,0.00047335,3]
[378831317,1755043837842,-770.0,0.00047434,5]
[378831319,1755043837851,-498.0,0.00047445,30]
[378831321,1755043837861,-497.0,0.00047448,7]
[378831323,1755043837871,-346.51041478,0.00047605,120]
[378831325,1755043837880,-552.0,0.00047659,30]
[378831327,1755043837890,-498.0,0.00047888,7]
[378831329,1755043837900,-164.0,0.0004799,2]
[378831331,1755043837909,-497.0,0.00048026,7]
[378831333,1755043837919,-364.13,0.00048046,7]
[378831335,1755043837929,-198.48,0.00048094,120]
[378831337,1755043837938,-175.25450382,0.00048137,30]
[378831339,1755043837947,-244.52,0.00048189,120]
[378831341,1755043837957,-176.15,0.00048217,120]
[378831343,1755043837966,-500.0,0.00048218,60]
[378831345,1755043837976,-165.85,0.00048256,2]
[378831347,1755043837985,-281.43564,0.0004831,41]
[378831349,1755043837995,-650.20878153,0.0004832,2]
[378831351,1755043838005,-497.0,0.00048374,2]
[378831353,1755043838015,-222.63,0.000484,7]
[378831355,1755043838025,-164.23,0.000485,120]
[378831357,1755043838035,-8077.6588946,0.0004857,2]
[378831359,1755043838045,-3583.29724275,0.0004858,90]
[378831361,1755043838055,-400.0,0.0004865,120]
[378831363,1755043838065,-400.0,0.0004866,120]
[378831365,1755043838075,-1000.0,0.00048667,14]
[378831368,1755043838086,-400.0,0.0004867,120]
[378831370,1755043838096,-400.0,0.0004868,120]
[378831372,1755043838106,-400.0,0.0004869,120]
[378831374,1755043838116,-182.21536289,0.00048699,120]
[378831376,1755043838126,-463.329,0.000487,2]
[378831378,1755043838137,-5000.0,0.000487,120]
[378831380,1755043838146,-1000.0,0.000487,2]
[378831382,1755043838156,-130.08252466,0.000487,15]
[378831422,1755043838525,-402.51370021,0.000487,15]
[378831424,1755043838534,-500.0,0.000487,17]
[378831426,1755043838544,-158.91982961,0.000487,15]
[378831428,1755043838555,-150.07182541,0.000487,33]
[378831430,1755043838569,-281.26548144,0.00048785,120]
[378831432,1755043838579,-363.03774784,0.00048789,120]
[378831433,1755043838589,-3964.8924616,0.0004879,4]
[378831434,1755043838599,-152687.177338,0.0004879,4]
[378831435,1755043838610,-300.0,0.00048799,30]
[378831436,1755043838620,-1127.61665504,0.00048799,60]
[378831437,1755043838629,-1127.61665504,0.00048799,60]
[378831438,1755043838640,-1127.61665504,0.00048799,60]
[378831439,1755043838649,-1127.61665504,0.00048799,60]
[378831440,1755043838659,-500.0,0.00048799,120]
[378831441,1755043838670,-500.0,0.00048799,120]
[378831442,1755043838679,-151.0,0.00048799,120]
[378831443,1755043838689,-151.0,0.00048799,120]
[378831444,1755043838698,-151.0,0.00048799,120]
[378831445,1755043838707,-151.0,0.00048799,120]
[378831446,1755043838716,-200.0,0.00048799,120]
[378831448,1755043838726,-207.4,0.00048799,120]
[378831450,1755043838735,-151.0,0.00048799,120]
[378831452,1755043838745,-300.0,0.00048799,120]
[378831454,1755043838755,-215.0738,0.00048799,120]
[378831456,1755043838764,-600.0,0.00048799,120]
[378831458,1755043838773,-151.0,0.00048799,120]
[378831460,1755043838782,-416.37393588,0.00048799,120]
[378831462,1755043838792,-223.0315306,0.00048799,120]
[378831464,1755043838801,-600.0,0.00048799,120]
[378831466,1755043838811,-231.28369723,0.00048799,120]
[378831468,1755043838820,-600.0,0.00048799,120]
[378831470,1755043838830,-239.84119403,0.00048799,120]
[378831472,1755043838839,-248.71531821,0.00048799,120]
[378831474,1755043838849,-600.0,0.00048799,120]
[378831476,1755043838858,-257.91778498,0.00048799,120]
[378831478,1755043838868,-600.0,0.00048799,120]
[378831480,1755043838877,-236.71804642,0.00048799,120]
[378831482,1755043838888,-200.0,0.00048799,120]
[378831484,1755043838897,-600.0,0.00048799,120]
[378831486,1755043838906,-267.46074303,0.00048799,120]
[378831488,1755043838915,-277.35679052,0.00048799,120]
[378831491,1755043838925,-600.0,0.00048799,120]
[378831493,1755043838935,-287.61899177,0.00048799,120]
[378831495,1755043838944,-206.47436341,0.00048799,120]
[378831497,1755043838954,-298.26089446,0.00048799,120]
[378831499,1755043838963,-309.29654756,0.00048799,120]
[378831501,1755043838973,-320.74051982,0.00048799,120]
[378831503,1755043838982,-500.0,0.00048799,120]
[378831505,1755043838992,-500.0,0.00048799,120]
[378831507,1755043839006,-332.60791905,0.00048799,120]
[378831509,1755043839015,-500.0,0.00048799,120]
[378831511,1755043839025,-344.91441206,0.00048799,120]
[378831513,1755043839034,-250.0,0.00048799,120]
[378831514,1755043839043,-500.0,0.00048799,120]
[378831516,1755043839053,-357.6762453,0.00048799,120]
[378831518,1755043839063,-250.0,0.00048799,120]
[378831521,1755043839073,-370.91026638,0.00048799,120]
[378831523,1755043839083,-1357.4837235,0.00048799,120]
[378831525,1755043839092,-500.0,0.00048799,120]
[378831526,1755043839102,-250.0,0.00048799,120]
[378831529,1755043839112,-384.63394623,0.00048799,120]
[378831531,1755043839121,-250.0,0.00048799,120]
[378831533,1755043839130,-249.39009394,0.00048799,120]
[378831535,1755043839141,-500.0,0.00048799,120]
[378831537,1755043839151,-250.0,0.00048799,120]
[378831539,1755043839160,-250.0,0.00048799,120]
[378831541,1755043839169,-500.0,0.00048799,120]
[378831542,1755043839179,-500.0,0.00048799,120]
[378831545,1755043839188,-250.0,0.00048799,120]
[378831546,1755043839199,-500.0,0.00048799,120]
[378831548,1755043839208,-250.0,0.00048799,120]
[378831550,1755043839217,-5000.0,0.00048799,120]
[378831552,1755043839227,-396.28077071,0.00048799,120]
[378831554,1755043839236,-5000.0,0.00048799,120]
[378831557,1755043839246,-160.0,0.00048799,120]
[378831558,1755043839266,-5000.0,0.00048799,120]
[378831560,1755043839275,-5000.0,0.00048799,120]
[378831563,1755043839285,-500.0,0.00048799,120]
[378831565,1755043839294,-5000.0,0.00048799,120]
[378831566,1755043839304,-160.0,0.00048799,120]
[378831569,1755043839313,-5125.08371312,0.00048799,120]
[378831571,1755043839322,-160.0,0.00048799,120]
[378831573,1755043839331,-1000.0,0.00048799,120]
[378831575,1755043839341,-1000.0,0.00048799,120]
[378831577,1755043839350,-1000.0,0.00048799,120]
[378831579,1755043839359,-1000.0,0.00048799,120]
[378831581,1755043839368,-160.0,0.00048799,120]
[378831583,1755043839377,-1000.0,0.00048799,120]
[378831585,1755043839387,-500.0,0.00048799,120]
[378831587,1755043839396,-160.0,0.00048799,120]
[378831589,1755043839405,-1000.0,0.00048799,120]
[378831591,1755043839414,-500.0,0.00048799,120]
[378831593,1755043839424,-1062.39973563,0.00048799,120]
[378831595,1755043839433,-160.0,0.00048799,120]
[378831597,1755043839442,-500.0,0.00048799,120]
[378831599,1755043839455,-160.0,0.00048799,120]
[378831601,1755043839465,-160.0,0.00048799,120]
[378831603,1755043839475,-151.0,0.00048799,120]
[378831616,1755043839565,-160.0,0.00048799,120]
[378831618,1755043839575,-160.0,0.00048799,120]
[378831620,1755043839584,-151.0,0.00048799,120]
[378831622,1755043839593,-160.0,0.00048799,120]
[378831624,1755043839602,-160.0,0.00048799,120]
[378831626,1755043839613,-500.0,0.00048799,120]
[378831628,1755043839622,-160.0,0.00048799,120]
[378831629,1755043839631,-160.0,0.00048799,120]
[378831630,1755043839644,-160.0,0.00048799,120]
[378831632,1755043839653,-160.0,0.00048799,120]
[378831633,1755043839662,-151.0,0.00048799,120]
[378831634,1755043839671,-160.0,0.00048799,120]
[378831635,1755043839681,-160.0,0.00048799,120]
[378831637,1755043839691,-151.0,0.00048799,120]
[378831639,1755043839700,-500.0,0.00048799,120]
[378831641,1755043839709,-160.0,0.00048799,120]
[378831642,1755043839719,-151.0,0.00048799,120]
[378831644,1755043839729,-500.0,0.00048799,120]
[378831647,1755043839739,-160.0,0.00048799,120]
[378831648,1755043839748,-151.0,0.00048799,120]
[378831650,1755043839757,-500.0,0.00048799,120]
[378831653,1755043839766,-151.0,0.00048799,120]
[378831655,1755043839776,-500.0,0.00048799,120]
[378831656,1755043839785,-285.907719,0.00048799,120]
[378831658,1755043839794,-151.0,0.00048799,120]
[378831661,1755043839804,-500.0,0.00048799,120]
[378831662,1755043839813,-206.37372345,0.00048799,120]
[378831664,1755043839822,-500.0,0.00048799,120]
[378831666,1755043839831,-300.0,0.00048799,120]
[378831668,1755043839845,-311.1,0.00048799,120]
[378831670,1755043839854,-600.0,0.00048799,120]
[378831672,1755043839863,-322.6107,0.00048799,120]
[378831674,1755043839872,-600.0,0.00048799,120]
[378831676,1755043839882,-334.5472959,0.00048799,120]
[378831679,1755043839892,-600.0,0.00048799,120]
[378831681,1755043839901,-346.92554585,0.00048799,120]
[378831683,1755043839911,-500.0,0.00048799,120]
[378831685,1755043839920,-600.0,0.00048799,120]
[378831687,1755043839929,-500.0,0.00048799,120]
[378831689,1755043839939,-359.76179104,0.00048799,120]
[378831691,1755043839948,-600.0,0.00048799,120]
[378831693,1755043839957,-500.0,0.00048799,120]
[378831695,1755043839966,-396.60237028,0.00048799,120]
[378831697,1755043839975,-600.0,0.00048799,120]
[378831699,1755043839984,-500.0,0.00048799,120]
[378831701,1755043839994,-600.0,0.00048799,120]
[378831703,1755043840003,-500.0,0.00048799,120]
[378831705,1755043840012,-600.0,0.00048799,120]
[378831707,1755043840022,-500.0,0.00048799,120]
[378831708,1755043840031,-600.0,0.00048799,120]
[378831710,1755043840041,-600.0,0.00048799,120]
[378831712,1755043840051,-1000.0,0.00048799,120]
[378831714,1755043840060,-600.0,0.00048799,120]
[378831716,1755043840069,-1037.0,0.00048799,120]
[378831719,1755043840078,-600.0,0.00048799,120]
[378831721,1755043840088,-1000.0,0.00048799,120]
[378831723,1755043840097,-1075.369,0.00048799,120]
[378831725,1755043840106,-600.0,0.00048799,120]
[378831727,1755043840116,-1000.0,0.00048799,120]
[378831728,1755043840126,-1115.157653,0.00048799,120]
[378831731,1755043840135,-600.0,0.00048799,120]
[378831733,1755043840145,-1000.0,0.00048799,120]
[378831735,1755043840154,-1156.41848616,0.00048799,120]
[378831737,1755043840164,-600.0,0.00048799,120]
[378831739,1755043840173,-600.0,0.00048799,120]
[378831741,1755043840182,-1199.20597015,0.00048799,120]
[378831743,1755043840191,-600.0,0.00048799,120]
[378831744,1755043840200,-1243.57659104,0.00048799,120]
[378831746,1755043840209,-600.0,0.00048799,120]
[378831748,1755043840218,-1205.50238499,0.00048799,120]
[378831750,1755043840227,-1000.0,0.00048799,120]
[378831752,1755043840237,-600.0,0.00048799,120]
[378831754,1755043840246,-156.30143435,0.00048799,120]
[378831757,1755043840255,-1000.0,0.00048799,120]
[378831759,1755043840267,-1000.0,0.00048799,120]
[378831761,1755043840276,-1000.0,0.00048799,120]
[378831763,1755043840285,-1000.0,0.00048799,120]
[378831765,1755043840295,-1000.0,0.00048799,120]
[378831767,1755043840304,-1000.0,0.00048799,120]
[378831769,1755043840313,-1000.0,0.00048799,120]
[378831771,1755043840323,-1000.0,0.00048799,120]
[378831773,1755043840332,-1000.0,0.00048799,120]
[378831775,1755043840341,-1000.0,0.00048799,120]
[378831777,1755043840350,-1000.0,0.00048799,120]
[378831778,1755043840359,-151.0,0.00048799,120]
[378831780,1755043840369,-1000.0,0.00048799,120]
[378831782,1755043840378,-1000.0,0.00048799,120]
[378831784,1755043840388,-151.0,0.00048799,120]
[378831786,1755043840398,-1000.0,0.00048799,120]
[378831789,1755043840408,-1000.0,0.00048799,120]
[378831791,1755043840418,-151.0,0.00048799,120]
[378831793,1755043840427,-1000.0,0.00048799,120]
[378831794,1755043840437,-1000.0,0.00048799,120]
[378831796,1755043840447,-151.0,0.00048799,120]
[378831798,1755043840456,-1000.0,0.00048799,120]
[378831800,1755043840466,-1000.0,0.00048799,120]
[378831802,1755043840475,-151.0,0.00048799,120]
[378831804,1755043840483,-1000.0,0.00048799,120]
[378831806,1755043840493,-1000.0,0.00048799,120]
[378831808,1755043840502,-151.0,0.00048799,120]
[378831810,1755043840511,-1000.0,0.00048799,120]
[378831812,1755043840520,-1000.0,0.00048799,120]
[378831815,1755043840530,-1000.0,0.00048799,120]
[378831817,1755043840539,-1000.0,0.00048799,120]
[378831819,1755043840549,-1000.0,0.00048799,120]
[378831821,1755043840558,-1000.0,0.00048799,120]
[378831822,1755043840571,-1000.0,0.00048799,120]
[378831824,1755043840580,-1000.0,0.00048799,120]
[378831826,1755043840589,-151.0,0.00048799,120]
[378831827,1755043840599,-151.0,0.00048799,120]
[378831828,1755043840609,-151.0,0.00048799,120]
[378831829,1755043840619,-151.0,0.00048799,120]
[378831830,1755043840627,-151.0,0.00048799,120]
[378831831,1755043840639,-151.0,0.00048799,120]
[378831832,1755043840648,-151.0,0.00048799,120]
[378831833,1755043840657,-151.0,0.00048799,120]
[378831834,1755043840666,-151.67161252,0.00048799,120]
[378831835,1755043840676,-181895.38151105,0.000488,120]
[378831836,1755043840685,-299778.51389988,0.000488,120]
[378831837,1755043840695,-127683.02,0.000488,4]
[378831838,1755043840704,-200.0,0.000488,7]
[378831839,1755043840713,-153.1303926,0.000488,120]
[378831840,1755043840722,-91125.29707272,0.000488,120]
[378831841,1755043840761,-134442.05932575,0.000488,120]
[378831842,1755043840783,-7470.6534356,0.000488,120]
[378831843,1755043840794,-120260.53160565,0.000488,120]
[378831844,1755043840928,-390.43708989,0.000488,120]
[378831845,1755043840939,-463.32898485,0.000488,120]
[378831860,1755043841117,-8781.82298034,0.000488,120]
[378831862,1755043841129,-8947.21879473,0.000488,120]
[378831864,1755043841141,-8943.78386462,0.000488,120]
[378831866,1755043841152,-2433.0725347,0.000488,120]
[378831867,1755043841162,-224.90650333,0.000488,30]
[378831868,1755043841171,-1000.0,0.000488,17]
[378831869,1755043841185,-4512.54092718,0.000488,120]
[378831870,1755043841196,-907.02869631,0.000489,17]
[378831871,1755043841219,-592.97130369,0.000489,17]
[378831872,1755043841231,-200.0,0.0004894,14]
[378831873,1755043841240,-532.59622484,0.0004897,15]
[378831874,1755043841249,-300.0,0.00048999,30]
[378831875,1755043841259,-7318.27270636,0.00049,120]
[378831876,1755043841291,-4681.72729364,0.00049,120]
[378831877,1755043841305,-1000.0,0.00049036,14]
[378831878,1755043841315,-1000.0,0.00049087,14]
[378831879,1755043841324,-497.0,0.00049098,7]
[378831880,1755043841333,-130.50214476,0.00049099,2]
[378831881,1755043841347,-366.49785524,0.00049099,2]
[378831882,1755043841356,-3529.55489327,0.00049136,60]
[378831883,1755043841369,-1470.44510673,0.00049136,60]
[378831884,1755043841379,-159.0,0.0004917,2]
[378831885,1755043841389,-855.15329242,0.00049215,31]
[378831886,1755043841403,-25780.71485175,0.00049215,31]
[378831887,1755043841414,-274.26881639,0.00049215,31]
[378831888,1755043841430,-2452.56402535,0.00049215,31]
[378831891,1755043842691,-10410.75234343,0.00049215,31]
[378831892,1755043842702,-10702.48560775,0.00049215,31]
[378831893,1755043842891,-500.0,0.00049215,31]
[378831905,1755043843050,-1046.68785707,0.00049215,31]
[378831916,1755043845520,-43954.65970857,0.00049215,31]
[378831917,1755043845530,-991.64123736,0.00049215,61]
[378831918,1755043845539,-35053.64235407,0.00049215,120]
[378831919,1755043845611,-1741.4312532,0.00049215,120]
[378831927,1755043891112,151.0,0.00035226,2]
[378831933,1755044148778,150.54,0.00013699,2]
[378831938,1755044403874,300.0,0.00027651,120]
[378831944,1755044726794,9795.89513385,0.000175,2]
[378831945,1755044733904,1127.61665504,0.00018999,5]
[378831946,1755044733950,1127.61665504,0.00018999,5]
[378831947,1755044738610,1127.61665504,0.00018999,5]
[378831948,1755044738689,1127.61665504,0.00018999,5]
[378831950,1755044828807,400.0,0.000189,6]
[378831951,1755044839607,-323.40196809,0.00018999,2]
[378831952,1755044852126,-526.59803191,0.00018999,2]
[378831953,1755044852149,-67.95279297,0.00018999,2]
[378831956,1755044927767,4025.53291034,0.0001,2]
[378831957,1755044949685,-191.42817715,0.00018899,2]
[378831958,1755044949711,-1900.21549596,0.000189,2]
[378831959,1755044949737,-300.0,0.00018999,2]
[378831960,1755044949763,-295.08495487,0.00018999,2]
[378831961,1755044949790,-21415.39128551,0.00019,2]
[378831962,1755044950197,-26573.25196586,0.00019,2]
[378831963,1755044950222,-495.82061868,0.00019,2]
[378831964,1755044950247,-30553.28591546,0.00019,2]
[378831965,1755044955160,-36427.35741079,0.00019,2]
[378831966,1755044958135,-6412.286216,0.00019,2]
[378831967,1755044963133,-253808.3772,0.00019,2]
[378831968,1755044965109,-31356.0996,0.00019,2]
[378831976,1755045031792,-263.263,0.00018999,2]
[378831977,1755045031852,-36.737,0.00018999,2]
[378831978,1755045031862,-449.04750157,0.00018999,2]
[378831979,1755045031873,-750.95249843,0.00018999,2]
[378831980,1755045031884,-11238.04750156,0.00019,2]
[378831981,1755045031897,-731.03756705,0.00019,2]
[378831984,1755045031931,-36013.43069403,0.00019,2]
[378831986,1755045031973,-24618.85469889,0.00019,2]
[378831987,1755045032034,-350.0,0.00019,2]
[378831988,1755045032045,-2870.42126342,0.00019,2]
[378831989,1755045032094,-7278.95633323,0.00019,2]
[378832009,1755045037726,-512.31274187,0.00019,2]
[378832011,1755045037742,-3296.01226809,0.00019,2]
[378832013,1755045037753,-100709.71012407,0.00019,2]
[378832016,1755045037771,-1322.22958078,0.00019,2]
[378832019,1755045037793,-9464.84572514,0.00019,2]
[378832021,1755045037863,-416061.14693113,0.00019,2]
[378832022,1755045037872,-674859.92462773,0.00019,2]
[378832023,1755045037881,-236.46,0.00019,2]
[378832025,1755045037891,-396.0,0.0002081,2]
[378832026,1755045037901,-184.13,0.00021512,2]
[378832028,1755045037911,-1900.21549589,0.0002236,2]
[378832030,1755045037924,-1412.62817403,0.000225,2]
[378832032,1755045037933,-158.53763355,0.000239,2]
[378832033,1755045037942,-10000.00993909,0.00024,5]
[378832034,1755045037951,-207915.078795,0.000248,2]
[378832035,1755045037963,-997.97504334,0.0002488,7]
[378832036,1755045037976,-281045.079164,0.000249,2]
[378832037,1755045037985,-466.07780003,0.00025,60]
[378832038,1755045037995,-3150.03522329,0.00025037,2]
[378832039,1755045038005,-610.0,0.00025496,2]
[378832040,1755045038014,-1249.71,0.00025692,2]
[378832041,1755045038023,-1900.21549589,0.00025819,2]
[378832042,1755045038032,-250.0,0.00026154,2]
[378832043,1755045038041,-250.0,0.00026493,2]
[378832044,1755045038051,-170.0,0.0002652,7]
[378832045,1755045038060,-3748.83940298,0.0002739,2]
[378832046,1755045038069,-3150.03522321,0.00027911,2]
[378832047,1755045038078,-654.401769,0.00028,60]
[378832048,1755045038087,-158.5376335,0.00028329,2]
[378832049,1755045038097,-283.38,0.00028587,2]
[378832050,1755045038106,-6167.99508415,0.00029,2]
[378832051,1755045038116,-1900.21549589,0.00029279,2]
[378832052,1755045038125,-6539.83676503,0.0003,2]
[378832053,1755045038134,-150.0,0.0003,2]
[378832054,1755045038143,-41485.88242889,0.0003,2]
[378832055,1755045038153,-799.999998,0.0003,2]
[378832056,1755045038162,-283.38,0.00030017,2]
[378832057,1755045038178,-33676.69046757,0.0003013,60]
[378832058,1755045038187,-4342.1772213,0.00030448,2]
[378832059,1755045038196,-458.2224,0.00030767,10]
[378832060,1755045038205,-3150.03522321,0.00030784,2]
[378832061,1755045038214,-250.0,0.000308,30]
[378832062,1755045038224,-900.0,0.000309,11]
[378832063,1755045038233,-236.46,0.000309,7]
[378832064,1755045038242,-150.0,0.00030999,2]
[378832065,1755045038258,-23994.32162569,0.00031,2]
[378832066,1755045038267,-247.91030935,0.00031,2]
[378832067,1755045038276,-186991.27135468,0.00031,120]
[378832068,1755045038285,-843.0035059,0.00031,120]